Cogmind - Beta 13 @@@ ROGUE MODE // 2024.05.22 @ 21:02:40 Player: Some Pennies Result: Self-destructed Performance ------------- Evolutions (4) 2000 Regions Visited (11) 2200 Robots Destroyed (117) 585 Value Destroyed (6194) 6194 Prototype IDs (51) 1020 Alien Tech Used (0) 0 Bonus (4759) 4759 TOTAL SCORE: 16758 Bonus ------- High Alert Combat Kills 436 Follower Combat Kills 1659 Entered Garrisons 600 Used RIF Installer 2500 Aligned with FarCom 300 Friendly Fire -736 Cogmind --------- Core Integrity 616/850 Matter 53/550 Energy 150/150 System Corruption 17% Temperature Cool (0) Movement Walking (610) Ox7 Location -6/Factory Parts ------- > --- POWER (1) -------- Micro Nuclear Core > --- PROPULSION (4) --- Flexi-carbon Leg > --- UTILITY (8) ------ Coolant Injector Cargo Storage Unit Matter Compressor Advanced Signal Interpreter Advanced Melee Analysis Suite Relay Coupler [Hunter] (11) > --- WEAPON (2) ------- Improved Datajack Katana > --- INVENTORY (30) --- Transmission Jammer Relay Coupler [NC] (34) Relay Coupler [NC] (31) Relay Coupler [NC] (33) Relay Coupler [Swarmer] (51) Relay Coupler [Swarmer] (51) Relay Coupler [Brawler] (29) Relay Coupler [Duelist] (27) Relay Coupler [Sentry] (33) Relay Coupler [Behemoth] (12) Phase Gun YOLO Cannon Heavy Mass Driver Heavy Gauss Cannon Remote Datajack Peak State ------------ > --- POWER ------------ Antimatter Reactor > --- PROPULSION ------- Improved Heavy Treads Improved Heavy Treads > --- UTILITY ---------- Cargo Storage Unit Machine Analyzer Advanced Phase Shifter Improved Medium Armor Plating Hacking Suite Relay Coupler [NC] Relay Coupler [Sentry] > --- WEAPON ----------- Heavy Gauss Cannon Heavy Gauss Cannon > --- INVENTORY -------- Antimatter Reactor Medium Treads Advanced Medium Treads Improved Cooling System Coolant Injector Advanced Targeting Computer Transmission Jammer Medium Reactive Plating Relay Coupler [NC] Relay Coupler [NC] Relay Coupler [NC] Relay Coupler [Swarmer] Relay Coupler [Swarmer] Relay Coupler [Grunt] Relay Coupler [Brawler] Relay Coupler [Duelist] Relay Coupler [Sentry] Relay Coupler [Hunter] Relay Coupler [Behemoth] Phase Gun YOLO Cannon Heavy Mass Driver Heavy Gauss Cannon Heavy Rocket Launcher Improved Datajack Remote Datajack Katana [Rating: 88] Favorites ----------- Power Reinforced Deuterium Engine Engine Reinforced Deuterium Engine Power Core Light Nuclear Core Reactor Antimatter Reactor Propulsion Armored Huge Wheel Treads Light Treads Leg Flexi-carbon Leg Wheel Armored Huge Wheel Utility Huge Storage Unit Device Seismic Detector Storage Huge Storage Unit Processor Machine Analyzer Hackware Hacking Suite Protection Hardened Light Armor Plating Weapon Katana Energy Gun Particle Gun Energy Cannon Advanced Beam Cannon Ballistic Gun Assault Rifle Ballistic Cannon Heavy Gauss Cannon Launcher Heavy Rocket Launcher Special Weapon Remote Datajack Slashing Weapon Katana Special Melee Weapon Improved Datajack Build | -11 -10 -10 -10 -9 -8 -8 -8 -8 -7 -7 -6 ------- Run | Yrd Mat Min Exi Min Mat Gar Mat Gar Fac Gar Fac Slots Evolved 8 | . . . . . 4 . . . 2 . 2 Power . | . . . . . . . . . . . . Propulsion 2 | . . . . . 2 . . . . . . Utility 6 | . . . . . 2 . . . 2 . 2 Weapon . | . . . . . . . . . . . . Parts Attached 189 | 8 11 11 . 3 37 4 4 17 18 44 32 Power 21 | 1 1 1 . . 3 1 2 . 5 5 2 Engine 10 | 1 1 . . . . . 2 . 4 2 . Core 9 | . . 1 . . 3 1 . . 1 2 1 Reactor 2 | . . . . . . . . . . 1 1 Propulsion 26 | 3 2 2 . . 11 . . 1 . 3 4 Treads 17 | 1 2 2 . . 7 . . . . 2 3 Leg 1 | . . . . . . . . . . . 1 Wheel 8 | 2 . . . . 4 . . 1 . 1 . Hover . | . . . . . . . . . . . . Flight . | . . . . . . . . . . . . Utility 63 | 2 3 2 . 1 9 1 2 6 9 14 14 Device 14 | 1 1 2 . 1 2 . . . . 3 4 Storage 6 | 1 2 . . . . . . . . 2 1 Processor 9 | . . . . . 4 . . . 1 1 3 Hackware 18 | . . . . . . . 1 6 4 4 3 Protection 16 | . . . . . 3 1 1 . 4 4 3 Artifact . | . . . . . . . . . . . . Weapon 79 | 2 5 6 . 2 14 2 . 10 4 22 12 Energy Gun 3 | . . 2 . . 1 . . . . . . Energy Cannon 1 | . . . . . 1 . . . . . . Ballistic Gun 28 | 2 2 1 . 1 11 . . 2 1 8 . Ballistic Cannon 14 | . 2 2 . 1 . . . 2 . 3 4 Launcher 9 | . 1 1 . . 1 . . 2 . 2 2 Special Weapon 7 | . . . . . . . . . 1 3 3 Impact Weapon . | . . . . . . . . . . . . Slashing Weapon 9 | . . . . . . 1 . . 2 4 2 Piercing Weapon . | . . . . . . . . . . . . Special Melee Weapon 8 | . . . . . . 1 . 4 . 2 1 Unidentified Prototypes 7 | . . . . . 5 . . . 2 . . Parts Lost 32 | . 2 6 . . 2 . . . 2 1 19 Power 6 | . . 1 . . 1 . . . 1 1 2 Propulsion 8 | . . 2 . . 1 . . . . . 5 Utility 12 | . 1 . . . . . . . 1 . 10 Weapon 6 | . 1 3 . . . . . . . . 2 Highest Loss Streak 7 | . 2 6 . . 1 . . . 1 1 7 To Critical Strikes . | . . . . . . . . . . . . Average Slot Usage (%) 80 | . 99 77 71 99 87 81 80 80 81 79 65 Engine 3 | . 14 3 . . . . 6 9 6 5 . Core 3 | . . 1 14 14 8 9 2 . . . . Treads 11 | . 12 27 28 28 14 . . . . 7 10 Wheel 8 | . 15 . . . 10 18 18 18 15 6 . Device 5 | . 13 14 14 13 1 . . . . . 7 Storage 9 | . 14 14 14 14 9 9 9 9 7 7 7 Processor 10 | . . . . . 16 18 18 18 18 14 6 Hackware 4 | . . . . . . . 2 7 11 11 10 Protection 4 | . . . . . 8 9 6 . 5 6 4 Ballistic Gun 6 | . 21 7 . 14 15 4 . 3 . 7 . Ballistic Cannon 3 | . 6 6 . 14 1 . . 6 . 1 5 Special Weapon 1 | . . . . . . . . . 7 . 1 Slashing Weapon 2 | . . . . . . 6 9 2 6 2 2 Special Melee Weapon 1 | . . . . . . 7 9 4 . . . Naked Turns . | . . . . . . . . . . . . Heaviest Build 207 | 13 92 90 86 90 96 96 105 105 120 207 190 Greatest Support 150 | 26 40 40 40 40 80 56 56 56 56 150 150 Greatest Overweight (x) 40 | . 3 2 2 2 31 1 1 1 2 40 8 Average Overweight (x) 1 | . 1 2 2 2 1 1 1 1 1 1 2 Largest Inventory Capacity 30 | 8 25 25 25 25 25 25 25 25 25 30 30 Average Capacity 25 | 7 20 25 25 25 25 25 25 25 25 27 30 Most Carried 30 | 5 15 17 17 25 25 25 25 25 25 30 30 Average Carried 21 | 2 12 14 16 17 24 24 24 24 24 27 23 Final Capacity 30 | 8 25 25 25 25 25 25 25 25 25 30 30 Final Carried 30 | 4 14 15 17 25 25 25 25 25 25 30 17 Class Distribution -------------------- 39% | Mutant 28% | Botlord-Mutant 17% | Bothacker-Mutant 6% | Botlord-Assassin 4% | Scavenger-Mutant 3% | Botlord-Skirmisher Dominant Class ---------------- Mutant | -10/Materials Mutant | -10/Mines Mutant | -10/Exiles Mutant | -9/Mines Mutant | -8/Materials Bothacker-Mutant | -8/Garrison Bothacker-Mutant | -8/Materials Bothacker-Mutant | -8/Garrison Botlord-Mutant | -7/Factory Botlord-Mutant | -7/Garrison Botlord-Mutant | -6/Factory Resources | -11 -10 -10 -10 -9 -8 -8 -8 -8 -7 -7 -6 ----------- Run | Yrd Mat Min Exi Min Mat Gar Mat Gar Fac Gar Fac Matter Collected 4424 | 302 255 446 . 82 896 . 87 374 267 836 879 Remotely . | . . . . . . . . . . . . Salvage Created 4636 | 121 340 311 . 31 1372 . 36 395 336 1254 440 Parts 237 | 8 26 8 . 1 86 . 7 22 14 43 22 Haulers Intercepted 7 | . 2 . . . 4 . . . 1 . . Recyclers Shooed 4 | . 1 1 . . . . . . 1 . 1 Parts Field Recycled . | . . . . . . . . . . . . Retrieved Matter . | . . . . . . . . . . . . Parts Self-Destructed . | . . . . . . . . . . . . Prevented . | . . . . . . . . . . . . Kills | -11 -10 -10 -10 -9 -8 -8 -8 -8 -7 -7 -6 ------- Run | Yrd Mat Min Exi Min Mat Gar Mat Gar Fac Gar Fac Combat Hostiles Destroyed 77 | . 11 4 . 1 23 . . 10 1 13 14 Melee 2 | . . . . . . . . . 1 . 1 Guns 41 | . 8 2 . . 21 . . 1 . 9 . Cannons 23 | . 2 2 . 1 2 . . 8 . . 8 AOE 11 | . 1 . . . . . . 1 . 4 5 Classes Destroyed 18 | 2 4 1 . . 5 . . 2 . 2 2 Worker 8 | . . . . . 8 . . . . . . Builder 3 | . . . . . 1 . 1 . . . 1 Tunneler 2 | 2 . . . . . . . . . . . Hauler 7 | . 2 . . . 4 . . . 1 . . Recycler 8 | 1 . 3 . . 1 . . . 3 . . Mechanic 1 | . . . . . . . . . . . 1 Operator 3 | . 1 . . . . . 1 . . . 1 Watcher 5 | . . . . . 5 . . . . . . Swarmer 21 | . 6 . . . 9 . . 2 . 3 1 Cutter 3 | . . . . . . . . . . 3 . Grunt 26 | . 5 2 . 1 7 . . 3 . 3 5 Brawler 4 | . . . . . . . . 1 . . 3 Duelist 3 | . . . . . . . . . . . 3 Sentry 10 | . . . . . 6 . . 3 . 1 . Demolisher 2 | . . 2 . . . . . . . . . Hunter 5 | . . . . . 1 . . 1 . 2 1 Programmer 5 | . . . . . . . . 1 1 1 2 Heavy 1 | . . . . . . . . . . 1 . Best Kill Streak 10 | 3 4 1 . 1 10 . 1 2 2 5 5 Combat Bots Only 9 | . 3 1 . 1 9 . . 2 1 5 4 Max Kills in Single Turn 2 | 1 1 1 . 1 2 . 1 1 1 2 2 Gunslinging . | . . . . . . . . . . . . Exploded 2 | . 1 . . . . . . 1 . 2 1 Melee 1 | . . . . . . . . . 1 . 1 Uniques/NPCs Destroyed . | . . . . . . . . . . . . Combat | -11 -10 -10 -10 -9 -8 -8 -8 -8 -7 -7 -6 -------- Run | Yrd Mat Min Exi Min Mat Gar Mat Gar Fac Gar Fac Hostile Shots Fired 568 | . 46 35 . 9 79 . 2 30 18 185 164 Missed 171 | . 15 7 . 2 28 . 1 12 6 61 39 Damage Taken 6549 | . 329 804 . 97 673 . 14 242 366 1049 2975 Core 668 | . 45 107 . 10 78 . . 67 . 127 234 Absorbed by Shields 68 | . . . . . . . . 38 . 30 . Ignored by Resistances 334 | . . . . . . . . . . 334 . Regen/Repaired (Parts) 152 | . . . . . 57 . 34 . 61 . . Core Remaining (%) 72 | 100 . . . 35 . . . 73 . 81 . Volleys Fired 360 | 7 38 29 . 2 89 1 . 32 19 59 84 Largest 2 | 2 2 2 . 2 2 2 . 2 1 2 2 Hottest 122 | 40 70 70 . 55 103 48 . 64 28 61 122 Shots Fired 581 | 14 77 56 . 4 178 2 . 42 19 81 108 Gun 355 | 14 66 38 . 2 157 2 . 12 3 61 . Cannon 165 | . 8 16 . 2 21 . . 26 . 2 90 Launcher 21 | . 3 2 . . . . . 4 . 5 7 Special 40 | . . . . . . . . . 16 13 11 Kinetic 515 | 14 74 54 . 4 173 2 . 38 3 63 90 Thermal 5 | . . . . . 5 . . . . . . Explosive 21 | . 3 2 . . . . . 4 . 5 7 Electromagnetic . | . . . . . . . . . . . . Robot Hit Streak 20 | 7 6 7 . 3 20 . . 17 6 17 9 Robot Miss Streak 5 | 2 4 2 . 1 4 . . 2 1 3 5 Penetration Max 1 | . . . . . . . . . . 1 1 Secondary Targets 5 | . 2 . . . 3 . . . . . . Max Gunslinging Chain 1 | . 1 . . . 1 . . . . . . Shots Hit Robots 499 | 10 41 35 . 3 115 25 14 37 25 109 85 Core Hits 214 | 4 22 13 . 4 69 . 1 17 4 40 40 Critical Kills 3 | 1 . 1 . . . . . . . 1 . Critical Parts Destroyed 1 | . . . . . . . . . . 1 . Critical Strikes 23 | 1 1 2 . . 1 . . . 1 3 14 Destroy 4 | 1 . 1 . . . . . . . 2 . Blast 14 | . 1 1 . . 1 . . . . . 11 Sever 5 | . . . . . . . . . 1 1 3 Melee Attacks 155 | . . . . . . 36 14 10 15 63 17 Thermal 1 | . . . . . . . . . . 1 . Impact . | . . . . . . . . . . . . Slashing 98 | . . . . . . 13 3 . 15 50 17 Piercing . | . . . . . . . . . . . . Sneak Attacks 61 | . . . . . . 23 14 4 5 13 2 Combat Hostiles 21 | . . . . . . 20 . . . 1 . Follow-up Attacks . | . . . . . . . . . . . . Damage Inflicted 12930 | 138 781 474 . 51 1837 138 207 819 602 3842 4041 Guns 3437 | 138 474 287 . 18 1609 . . 114 44 753 . Cannons 3192 | . 84 176 . 33 188 . . 547 . . 2164 Explosions 2148 | . 223 7 . . . . . 158 . 376 1384 Melee 4109 | . . . . . . 138 207 . 558 2713 493 Ramming 44 | . . 4 . . 40 . . . . . . Kinetic 6609 | 138 558 463 . 51 1777 . . 661 44 753 2164 Thermal 431 | . . . . . 20 . . . . . 411 Explosive 1737 | . 223 7 . . . . . 158 . 376 973 Electromagnetic . | . . . . . . . . . . . . Impact . | . . . . . . . . . . . . Slashing 4109 | . . . . . . 138 207 . 558 2713 493 Piercing . | . . . . . . . . . . . . Highest Corruption 17 | . 1 1 1 1 . . . 1 . . 17 Average Corruption 3 | . 1 1 1 1 . . . 1 . . 10 Corruption Purged . | . . . . . . . . . . . . Corruption Blocked . | . . . . . . . . . . . . Effects 94 | . 8 19 7 8 . . . . . . 52 Message Errors 25 | . 2 3 2 2 . . . . . . 16 Matter Fused 28 | . 1 5 5 1 . . . . . . 16 Heat Flow Errors 4 | . 2 . . . . . . . . . 2 Energy Discharges 9 | . 1 2 . 1 . . . . . . 5 Parts Rejected 2 | . . 1 . 1 . . . . . . . Data Loss (minor) 14 | . . 5 . 1 . . . . . . 8 Data Loss (major) 6 | . 1 . . 2 . . . . . . 3 Misfires 4 | . 1 3 . . . . . . . . . Alerts 2 | . . . . . . . . . . . 2 Overload Shots . | . . . . . . . . . . . . Overflow Damage 605 | . . 15 . . 25 5 66 . 99 148 247 Projectiles 67 | . . 15 . . . . . . . . 52 Explosions 171 | . . . . . . . . . . . 171 Melee 367 | . . . . . 25 5 66 . 99 148 24 Knockbacks 35 | . . 2 . . 3 . . 5 . . 25 Impact . | . . . . . . . . . . . . Kinetic 34 | . . 2 . . 3 . . 5 . . 24 Secondary 1 | . . . . . . . . . . . 1 Self-Inflicted Damage 408 | . . . . . 20 . . . . . 388 Shots 7 | . . . . . . . . . . . 7 Rammed 2 | . . 1 . . 1 . . . . . . Targets Rammed 2 | . . 1 . . 1 . . . . . . Kicked . | . . . . . . . . . . . . Crushed . | . . . . . . . . . . . . Highest Temperature 468 | . 216 8 . 48 159 10 . 37 . 108 468 Average Temperature 66 | . 48 2 . 31 23 7 . 14 . 30 147 Received Heat Transfer 1552 | . 129 114 . 54 216 . 9 108 24 177 721 Effects 3 | . . . . . . . . . . . 3 Shutdowns 1 | . . . . . . . . . . . 1 Interference 2 | . . . . . . . . . . . 2 Siege Activations . | . . . . . . . . . . . . Robots Corrupted . | . . . . . . . . . . . . Combat Hostiles . | . . . . . . . . . . . . Parts Fried 1 | . . . . . 1 . . . . . . Impact Corruptions 1 | . . . . . 1 . . . . . . Robots Melted . | . . . . . . . . . . . . Combat Hostiles . | . . . . . . . . . . . . Parts Melted . | . . . . . . . . . . . . Heat Transferred 237 | . . . . . 37 . . . . . 200 Parts Sabotaged . | . . . . . . . . . . . . Parts Stolen . | . . . . . . . . . . . . Parts Stripped . | . . . . . . . . . . . . Power Chain Reactions . | . . . . . . . . . . . . Alert | -11 -10 -10 -10 -9 -8 -8 -8 -8 -7 -7 -6 ------- Run | Yrd Mat Min Exi Min Mat Gar Mat Gar Fac Gar Fac Peak Influence 1310 | 15 162 72 . 172 373 705 519 1178 669 1310 863 Initial 687 | . 9 7 . . 14 170 343 128 618 115 687 Average 380 | 7 57 20 . 99 156 462 365 782 346 637 667 Maximum Alert Level 4 | . . . . . 1 3 2 4 2 4 3 Low Security (%) 39 | 100 100 100 . 100 66 4 14 . 38 2 . Level 1 16 | . . . . . 33 32 37 15 14 25 . Level 2 27 | . . . . . . 49 47 17 46 28 68 Level 3 15 | . . . . . . 13 . 56 . 36 31 Level 4 1 | . . . . . . . . 9 . 7 . Level 5 . | . . . . . . . . . . . . High Security . | . . . . . . . . . . . . Max Security . | . . . . . . . . . . . . Squads Dispatched 24 | . 1 . . . 3 . 6 . 2 . 12 Investigation 4 | . 1 . . . 3 . . . . . . Extermination 4 | . . . . . . . . . 1 . 3 Reinforcement 5 | . . . . . . . 2 . . . 3 Assault 6 | . . . . . . . . . . . 6 Garrison 5 | . . . . . . . 4 . 1 . . Intercept . | . . . . . . . . . . . . Searches Triggered . | . . . . . . . . . . . . Construction Impeded 1 | . . . . . . . . . . . 1 Haulers Reinforced 1 | . . . . . . . . . . . 1 Active Scanning Responses . | . . . . . . . . . . . . Cargo Convoy Interrupts . | . . . . . . . . . . . . Stealth | -11 -10 -10 -10 -9 -8 -8 -8 -8 -7 -7 -6 --------- Run | Yrd Mat Min Exi Min Mat Gar Mat Gar Fac Gar Fac Distress Signals 7 | . 1 . . . 5 . 1 . . . . Communications Jammed . | . . . . . . . . . . . . Distress Signals . | . . . . . . . . . . . . Times Spotted 184 | . 19 4 . 4 38 . 7 32 17 22 41 Peak Tracking Total 7 | . 3 2 . 3 5 . 2 5 5 5 7 Tactical Retreats 1 | . . . . . . . . . . . 1 Traps | -11 -10 -10 -10 -9 -8 -8 -8 -8 -7 -7 -6 ------- Run | Yrd Mat Min Exi Min Mat Gar Mat Gar Fac Gar Fac Traps Triggered 10 | . . . . . . . . . . 9 1 Indirectly . | . . . . . . . . . . . . Trap Hack Attempts 49 | . . . . . . . . 49 . . . Triggered . | . . . . . . . . . . . . Disarmed 1 | . . . . . . . . 1 . . . Reprogrammed 3 | . . . . . . . . 3 . . . Reused . | . . . . . . . . . . . . Traps Extracted . | . . . . . . . . . . . . Installed . | . . . . . . . . . . . . Triggered . | . . . . . . . . . . . . Machines | -11 -10 -10 -10 -9 -8 -8 -8 -8 -7 -7 -6 ---------- Run | Yrd Mat Min Exi Min Mat Gar Mat Gar Fac Gar Fac Machines Disabled 34 | . . . . . . 5 . 6 1 10 12 Max in Single Turn 5 | . . . . . . 1 . 2 . 1 5 Garrison Access 2 | . . . . . . . . . 2 . . Garrison Relay 14 | . . . . . . 4 . 4 . 6 . Machines Repaired . | . . . . . . . . . . . . Machines Dismantled . | . . . . . . . . . . . . Machines Sabotaged . | . . . . . . . . . . . . Overloaded Fab Kills . | . . . . . . . . . . . . Hacking | -11 -10 -10 -10 -9 -8 -8 -8 -8 -7 -7 -6 --------- Run | Yrd Mat Min Exi Min Mat Gar Mat Gar Fac Gar Fac Machines Accessed 49 | . 8 . 2 . 11 3 8 4 10 1 2 Terminals 32 | . 7 . . . 7 3 6 4 3 1 1 Fabricators 2 | . . . . . . . . . 1 . 1 Repair Stations 4 | . . . . . 2 . 1 . 1 . . Recycling Units 2 | . 1 . . . . . . . 1 . . Scanalyzers 2 | . . . . . 1 . . . 1 . . Garrison Access 5 | . . . . . 1 . 1 . 3 . . Total Hacks 149 | . 31 . 24 . 33 6 21 4 25 1 4 Successful 85 | . 15 . 24 . 17 1 7 4 15 1 1 Failed 64 | . 16 . . . 16 5 14 . 10 . 3 Catastrophic 5 | . 1 . . . 1 1 1 . . . 1 Database Lockouts . | . . . . . . . . . . . . Manual 41 | . 14 . 1 . 10 . 11 . 2 . 3 Terminals 92 | . 28 . . . 23 6 17 4 10 1 3 Fabricators 2 | . . . . . . . . . 1 . 1 Repair Stations 9 | . . . . . 4 . 2 . 3 . . Recycling Units 5 | . 3 . . . . . . . 2 . . Scanalyzers 10 | . . . . . 5 . . . 5 . . Garrison Access 7 | . . . . . 1 . 2 . 4 . . Terminal Hacks 56 | . 11 . 24 . 9 1 3 4 3 1 . Record 23 | . . . 23 . . . . . . . . Robot Analysis 4 | . 1 . . . 3 . . . . . . Prototype ID Bank 4 | . 1 . . . . . 2 . 1 . . Open Door 1 | . . . . . . . . 1 . . . Branch Access Points 1 | . . . . . 1 . . . . . . Emergency Access Points 4 | . 2 . . . . 1 . 1 . . . Terminal Index 1 | . 1 . . . . . . . . . . Unreport Threat 3 | . 1 . . . . . 1 . 1 . . Locate Traps 5 | . 3 . . . 2 . . . . . . Recall Investigation 1 | . . . . . 1 . . . . . . Hauler Manifests 1 | . 1 . . . . . . . . . . Registered Components 1 | . . . . . . . . . 1 . . Zone Layout 3 | . 1 . . . 2 . . . . . . Garrison Registry 1 | . . . . . . . . 1 . . . Security Stations 2 | . . . . . . . . 1 . 1 . Derelict Proto ID Bank 1 | . . . 1 . . . . . . . . Fabricator Hacks 2 | . . . . . . . . . 1 . 1 Network Status 2 | . . . . . . . . . 1 . 1 Repair Station Hacks 6 | . . . . . 2 . 2 . 2 . . Scan Component 3 | . . . . . 1 . 1 . 1 . . Repair 3 | . . . . . 1 . 1 . 1 . . Recycling Unit Hacks 1 | . . . . . . . . . 1 . . Retrieve Components 1 | . . . . . . . . . 1 . . Scanalyzer 5 | . . . . . 2 . . . 3 . . Insert Component 3 | . . . . . 1 . . . 2 . . Analyze 2 | . . . . . 1 . . . 1 . . Garrison Access Hacks 7 | . . . . . 1 . 2 . 4 . . Unlock Access 3 | . . . . . 1 . 1 . 1 . . Seal Access 2 | . . . . . . . . . 2 . . Coupler Status 2 | . . . . . . . 1 . 1 . . Unauthorized Hacks 8 | . 4 . . . 3 . . . 1 . . Terminals 7 | . 3 . . . 3 . . . 1 . . Botnet 7 | . 3 . . . 3 . . . 1 . . Fabricators . | . . . . . . . . . . . . Repair Stations . | . . . . . . . . . . . . Recycling Units 1 | . 1 . . . . . . . . . . Mask 1 | . 1 . . . . . . . . . . Scanalyzers . | . . . . . . . . . . . . Garrison Access . | . . . . . . . . . . . . Data Cores Recovered . | . . . . . . . . . . . . Used . | . . . . . . . . . . . . Hacking Detections 38 | . 8 . . . 9 3 8 1 7 . 2 Full Trace Events 8 | . 3 . . . 3 2 . . . . . Feedback Events 1 | . 1 . . . . . . . . . . Corruption 1 | . 1 . . . . . . . . . . Feedback Blocked . | . . . . . . . . . . . . Robot Schematics Acquired . | . . . . . . . . . . . . Robots Built . | . . . . . . . . . . . . Authchips . | . . . . . . . . . . . . Time . | . . . . . . . . . . . . Total Robot Build Rating . | . . . . . . . . . . . . Part Schematics Acquired 1 | . . . . . . . . . 1 . . Parts Built . | . . . . . . . . . . . . Authchips . | . . . . . . . . . . . . Time . | . . . . . . . . . . . . Total Part Build Rating . | . . . . . . . . . . . . Parts Repaired 3 | . . . . . 1 . 1 . 1 . . Time 120 | . . . . . 32 . 44 . 44 . . Parts Recycled . | . . . . . . . . . . . . Recycled Matter . | . . . . . . . . . . . . Retrieved Matter . | . . . . . . . . . . . . Retrieved Components 10 | . . . . . . . . . 10 . . Parts Scanalyzed 3 | . . . . . 1 . . . 2 . . Part Schematics Acquired 1 | . . . . . . . . . 1 . . Parts Damaged 1 | . . . . . . . . . 1 . . Bothacking | -11 -10 -10 -10 -9 -8 -8 -8 -8 -7 -7 -6 ------------ Run | Yrd Mat Min Exi Min Mat Gar Mat Gar Fac Gar Fac Used RIF Installer 5 | . . . . . . 2 . 2 . 1 . Robot Detection 1 | . . . . . . . . . . 1 . Watcher Feeds 1 | . . . . . . . . 1 . . . Patrol Navigation 1 | . . . . . . . . 1 . . . Structural Interface 1 | . . . . . . 1 . . . . . Robots Hacked 37 | . . . . . . 1 8 5 10 6 7 Non-combat 17 | . . . . . . . 7 . 8 . 2 Combat 20 | . . . . . . 1 1 5 2 6 5 Robot Hacks Applied 42 | . . . . . . 1 10 6 12 6 7 parse_system 4 | . . . . . . 1 1 1 . 1 . ignore_repairs 3 | . . . . . . . 3 . . . . map_walls 2 | . . . . . . . 1 . 1 . . drop_inventory 3 | . . . . . . . 2 . 1 . . find_recycling 1 | . . . . . . . . . 1 . . ignore_parts 4 | . . . . . . . 1 . 3 . . map_route 1 | . . . . . . . . . 1 . . mark_security 2 | . . . . . . . . . 2 . . redirect_shields 1 | . . . . . . . . . . . 1 go_dormant 1 | . . . . . . . . . . . 1 overwrite_iff 2 | . . . . . . . . . . 1 1 formatsys_low 4 | . . . . . . . 2 . 1 . 1 formatsys_high 14 | . . . . . . . . 5 2 4 3 Relay Couplers Released 48 | . . . . . . 15 . 12 . 21 . Machine Destruction 48 | . . . . . . 15 . 12 . 21 . Attached 16 | . . . . . . . 1 6 2 4 3 Fabnet Peak Effective % . | . . . . . . . . . . . . Robots Rewired 20 | . . . . . . 8 . 2 . 10 . Allies Hacked 2 | . . . . . . . . 2 . . . Hacks Repelled . | . . . . . . . . . . . . Allies | -11 -10 -10 -10 -9 -8 -8 -8 -8 -7 -7 -6 -------- Run | Yrd Mat Min Exi Min Mat Gar Mat Gar Fac Gar Fac Total Allies 43 | . . 3 . . . 8 2 7 3 15 5 Largest Group 10 | . . 3 3 3 2 8 8 10 5 7 7 Highest-Rated Group 179 | . . 40 40 40 24 102 111 179 148 179 179 Highest-Rated Ally 90 | . . 16 16 16 16 21 21 31 90 90 41 Total Orders 17 | . . . . . . 2 . 9 6 . . STAY 6 | . . . . . . 1 . 3 2 . . FOLLOW 8 | . . . . . . 1 . 4 3 . . AID 3 | . . . . . . . . 2 1 . . Ally Attacks 288 | . . . . 29 5 . 58 102 16 29 49 Total Damage 5377 | . . . . 347 42 . 675 1349 1017 781 1166 Kills 65 | . . . . 7 . . 12 22 9 7 8 Allies Corrupted 4 | . . . . 1 . . . 1 . . 2 Allies Melted . | . . . . . . . . . . . . Intel | -11 -10 -10 -10 -9 -8 -8 -8 -8 -7 -7 -6 ------- Run | Yrd Mat Min Exi Min Mat Gar Mat Gar Fac Gar Fac Robot Analysis Total 4 | . 1 . . . 3 . . . . . . Derelict Logs Recovered 2 | . . 2 . . . . . . . . . Drone Launches . | . . . . . . . . . . . . Drone Recoveries . | . . . . . . . . . . . . Exploration | -11 -10 -10 -10 -9 -8 -8 -8 -8 -7 -7 -6 ------------- Run | Yrd Mat Min Exi Min Mat Gar Mat Gar Fac Gar Fac Turns Passed 16040 | 99 1068 1803 1289 563 2028 864 1107 1121 1713 2264 2121 Spaces Moved 8003 | 63 573 527 403 167 1104 655 838 802 1291 1043 537 Core 9 | 7 . . . . 1 . . . . 1 . Treads 2417 | . 143 527 403 167 248 . . . . 431 498 Legs 39 | . . . . . . . . . . . 39 Wheels 5538 | 56 430 . . . 855 655 838 802 1291 611 . Hover . | . . . . . . . . . . . . Flight . | . . . . . . . . . . . . Fastest Speed 50 | 50 90 320 320 320 115 115 115 115 115 115 235 Average Speed 173 | 93 159 320 320 320 144 115 115 115 117 173 337 Slowest Speed 2050 | 100 320 320 320 320 1600 115 115 115 130 2050 680 Overloaded Moves . | . . . . . . . . . . . . Propulsion Burnouts . | . . . . . . . . . . . . Robots Hopped . | . . . . . . . . . . . . Cave-ins Triggered . | . . . . . . . . . . . . Exploration Rate (%) 60 | 5 88 97 89 20 63 93 46 93 33 90 11 Regions Visited 11 Branch Regions 3 Pre-discovered Areas 1 | . . . 1 . . . . . . . . Known Exits Taken 3 | . . . . . 1 . 1 . 1 . . Unknown Exits Taken 5 | 1 1 1 1 1 . . . . . . . Scrap Searched 5 | . . 3 . 2 . . . . . . . Spaces Dug 3 | . . . . . . 1 . . 2 . . Terrain Destroyed 249 | . 14 11 . . . 1 . 13 2 61 147 Melee 3 | . . . . . . 1 . . 2 . . Projectile 25 | . 1 . . . . . . . . 5 19 AOE 221 | . 13 11 . . . . . 13 . 56 128 Terrain Rammed . | . . . . . . . . . . . . Walls Destroyed . | . . . . . . . . . . . . Machines Disabled . | . . . . . . . . . . . . Actions | -11 -10 -10 -10 -9 -8 -8 -8 -8 -7 -7 -6 --------- Run | Yrd Mat Min Exi Min Mat Gar Mat Gar Fac Gar Fac Total 9520 | 88 652 591 404 195 1381 750 977 962 1452 1357 711 Wait 421 | . 8 9 1 9 70 25 116 25 86 41 31 Move 7992 | 62 572 526 402 166 1103 654 837 801 1290 1042 537 Hop . | . . . . . . . . . . . . Pick Up 170 | 11 17 10 1 13 30 15 3 15 10 37 8 Fast Attach 34 | . . . . . 16 . 1 1 7 9 . Attach 74 | 7 4 8 . 3 11 . 1 2 4 13 21 Detach 3 | . . 1 . . 1 . . . . . 1 Swap 83 | 1 7 3 . . 11 4 2 14 8 22 11 Drop 146 | . 6 4 . 2 49 15 3 12 13 41 1 Fire 360 | 7 38 29 . 2 89 1 . 32 19 59 84 Melee 155 | . . . . . . 36 14 10 15 63 17 Ram 1 | . . . . . 1 . . . . . . Kick . | . . . . . . . . . . . . Crush 1 | . . 1 . . . . . . . . . Escape Stasis 30 | . . . . . . . . . . 30 . Rewire 1 | . . . . . . . . 1 . . . Trap 49 | . . . . . . . . 49 . . . Miscellaneous . | . . . . . . . . . . . . Route ------- -11/Scrapyard -10/Materials (discovered 5 exits: [*Mat x3] / [*Min x2]) -10/Mines (discovered 4 exits: [*Mat x2] / *Exi / Sub) -10/Exiles -9/Mines -8/Materials (discovered 2 exits: *Fac / Gar) -8/Garrison (discovered 3 exits: *Mat x3) -8/Materials (discovered 2 exits: *Fac / Gar) -8/Garrison (discovered 3 exits: *Fac x3) -7/Factory (discovered 4 exits: *Fac x3 / Gar) -7/Garrison (discovered 2 exits: *Fac x2) -6/Factory History --------- Turn | Location | Event 29 | -11/Scrapyard | Discovered new exit (range 15) 100 | -11/Scrapyard | Entered Materials 224 | -10/Materials | Discovered new exit (range 16) 306 | -10/Materials | Build established: Mutant 337 | -10/Materials | Discovered new exit (range 15) 403 | -10/Materials | Discovered new exit (range 16) 581 | -10/Materials | Discovered new exit (range 13) 656 | -10/Materials | Discovered new exit (range 15) 1168 | -10/Materials | Entered Mines 1173 | -10/Mines | Met a Derelict bent on vengeance 1382 | -10/Mines | Learned Materials security intel 1588 | -10/Mines | Assembled infested the area 1593 | -10/Mines | Assisted by a Guerilla fighting off Assembled 1660 | -10/Mines | Core integrity fell below 50% 1704 | -10/Mines | Lost 6 parts (1p2n3w) 1787 | -10/Mines | Deemed a non-threat by the Exiles lab entrance 1787 | -10/Mines | Discovered new exit (range 5) 1969 | -10/Mines | Discovered new exit (range 7) 2008 | -10/Mines | Identified exit to Subcaves 2158 | -10/Mines | Discovered new exit (range 9) 2414 | -10/Mines | Assisted by bots powering up and referring to "LRC-V3" 2971 | -10/Mines | Entered Exiles 2971 | -10/Exiles | Accompanied by 3 allies 3051 | -10/Exiles | Met 8R-AWN 3104 | -10/Exiles | Met EX-HEX 3193 | -10/Exiles | Met EX-BIN 3238 | -10/Exiles | Aligned with FarCom system 3241 | -10/Exiles | Given EX-Vault access code 3318 | -10/Exiles | Opened EX-Vault 3340 | -10/Exiles | Found YOLO Cannon 3412 | -10/Exiles | Warned to stay clear of 0b10 Research branches 3505 | -10/Exiles | Met EX-DEC 3530 | -10/Exiles | Learned location of Zion (-7) 3771 | -10/Exiles | Visited The Gauntlet 4231 | -10/Exiles | Discovered new exit (range 11) 4260 | -10/Exiles | Left Exiles lab with YOLO Cannon 4260 | -10/Exiles | Entered Mines 4260 | -9/Mines | Accompanied by 3 allies 4676 | -9/Mines | Discovered new exit (range 9) 4708 | -9/Mines | Joined a pair of Derelicts in attacking an 0b10 outpost 4823 | -9/Mines | Entered Materials 4823 | -8/Materials | Accompanied by 2 allies 4823 | -8/Materials | Evolved 4 slots: Propulsion x2, Utility x2 5230 | -8/Materials | Build established: Scavenger-Mutant 5477 | -8/Materials | Repaired Hvy. Assault Rifle 5929 | -8/Materials | Build established: Mutant 6066 | -8/Materials | Discovered new exit (range 14) 6163 | -8/Materials | Identified exit to Garrison 6338 | -8/Materials | Destroyed 9 combat bots 6851 | -8/Materials | Entered Garrison 6851 | -8/Garrison | Discovered recently destroyed garrison 6872 | -8/Garrison | Installed Relay Interface Framework 6920 | -8/Garrison | Garrison Relay disabled 7064 | -8/Garrison | Discovered new exit (range 14) 7118 | -8/Garrison | Garrison Relay disabled 7265 | -8/Garrison | Discovered new exit (range 3) 7297 | -8/Garrison | Garrison Relay disabled 7325 | -8/Garrison | Expanded RIF knowledge: Structural Interface 7419 | -8/Garrison | Build established: Bothacker-Mutant 7504 | -8/Garrison | Discovered new exit (range 2) 7542 | -8/Garrison | Garrison Relay disabled 7715 | -8/Garrison | Entered Materials 7715 | -8/Materials | Accompanied by 8 allies 7779 | -8/Materials | Met 7R-MNS 7807 | -8/Materials | Garrison activated, responded to threat 7819 | -8/Materials | Identified exit to Garrison 7965 | -8/Materials | Discovered new exit (range 16) 8171 | -8/Materials | Repaired Rnf. Deuterium Engine 8458 | -8/Materials | Garrison activated, responded to threat 8822 | -8/Materials | Entered Garrison 8822 | -8/Garrison | Accompanied by 7 allies 8826 | -8/Garrison | Triggered checkpoint 9000 | -8/Garrison | Triggered checkpoint 9072 | -8/Garrison | Triggered checkpoint 9181 | -8/Garrison | Discovered new exit (range 12) 9216 | -8/Garrison | Triggered checkpoint 9244 | -8/Garrison | Garrison Relay disabled 9273 | -8/Garrison | Expanded RIF knowledge: Patrol Navigation 9372 | -8/Garrison | Triggered checkpoint 9404 | -8/Garrison | Triggered checkpoint 9432 | -8/Garrison | Lost 5 allies 9486 | -8/Garrison | Learned Factory security intel 9499 | -8/Garrison | Discovered new exit (range 11) 9580 | -8/Garrison | Triggered checkpoint 9598 | -8/Garrison | Discovered new exit (range 71) 9598 | -8/Garrison | Discovered new exit (range 27) 9598 | -8/Garrison | Discovered new exit (range 36) 9735 | -8/Garrison | Garrison Relay disabled 9837 | -8/Garrison | Garrison Relay disabled 9874 | -8/Garrison | Triggered checkpoint 9878 | -8/Garrison | Expanded RIF knowledge: Watcher Feeds 9943 | -8/Garrison | Entered Factory 9943 | -7/Factory | Accompanied by 3 allies 9943 | -7/Factory | Evolved 2 slots: Utility x2 10096 | -7/Factory | Identified exit to Garrison 10171 | -7/Factory | Discovered new exit (range 5) 10176 | -7/Factory | Build established: Botlord-Mutant 10277 | -7/Factory | Discovered new exit (range 144) 10724 | -7/Factory | Discovered new exit (range 16) 11203 | -7/Factory | Repaired Rnf. Deuterium Engine 11224 | -7/Factory | Build established: Botlord-Assassin 11640 | -7/Factory | Garrison activated, responded to threat 11656 | -7/Factory | Entered Garrison 11656 | -7/Garrison | Accompanied by 3 allies 11672 | -7/Garrison | Triggered checkpoint 11709 | -7/Garrison | Garrison Relay disabled 11730 | -7/Garrison | Heavy support dispatched to Factory 11756 | -7/Garrison | Triggered checkpoint 11764 | -7/Garrison | Triggered checkpoint 11899 | -7/Garrison | Lost 3 allies 12085 | -7/Garrison | Triggered checkpoint 12116 | -7/Garrison | Triggered checkpoint 12142 | -7/Garrison | Triggered checkpoint 12187 | -7/Garrison | Build established: Botlord-Mutant 12254 | -7/Garrison | Discovered new exit (range 7) 12282 | -7/Garrison | Triggered checkpoint 12339 | -7/Garrison | Garrison Relay disabled 12359 | -7/Garrison | Learned Factory security intel 12430 | -7/Garrison | Heavy support dispatched to Factory 12892 | -7/Garrison | Triggered checkpoint 12936 | -7/Garrison | Garrison Relay disabled 13227 | -7/Garrison | Garrison Relay disabled 13251 | -7/Garrison | Build established: Botlord-Skirmisher 13296 | -7/Garrison | Discovered new exit (range 10) 13348 | -7/Garrison | Triggered checkpoint 13380 | -7/Garrison | Garrison Relay disabled 13414 | -7/Garrison | Expanded RIF knowledge: Robot Detection 13736 | -7/Garrison | Triggered checkpoint 13756 | -7/Garrison | Build established: Botlord-Mutant 13770 | -7/Garrison | Triggered checkpoint 13820 | -7/Garrison | Garrison Relay disabled 13920 | -7/Garrison | Entered Factory 13920 | -6/Factory | Accompanied by 7 allies 13920 | -6/Factory | Evolved 2 slots: Utility x2 14270 | -6/Factory | First assault squad dispatched 14344 | -6/Factory | Lost 3 allies 14837 | -6/Factory | Lost 7 parts (3n3u1w) 14896 | -6/Factory | System corruption reached 10% 14929 | -6/Factory | Lost 7 parts (1p5u1w) 15732 | -6/Factory | Lost 3 parts (1p1n1u) 16041 | -6/Factory | Self-destructed Last Messages --------------- 15993_ U-05 Engineer builds a Wall. 15997_ U-05 Engineer lays Concrete. 15999_ U-05 Engineer builds a Wall. 16003_ U-05 Engineer lays Concrete. 16006_ U-05 Engineer builds a Wall. 16008_ Dropped Hvy. Gauss Cannon. 16010_ U-05 Engineer lays Concrete. 16011_ U-05 Engineer builds a Wall. 16015_ U-05 Engineer lays Concrete. 16016_ Acquired 8 matter. 16017_ 47PYULA ZMD52 9XB0CSVQW8>RP=FLY5DI< 16020_ ALERT: Significant disruption in Zone 9L, multiple assault carriers dispatched. 16024_ R-10 Processor collects Welding Torch. 16029_ R-10 Processor collects Hvy. Gauss Cannon. 16032_ System corrupted: Energy discharge (-51). 16038_ Critical hit (Burn: +37). 16040_ Adv. Medium Treads destroyed. [Achievement: Tester] Map ----- +----------------------------------------------------+ | ??????????????????###+#+#????????????????????????? | | ??????????????????+ #????????????????????????? | | ??????????????????# #############????????????? | | ??????????????????# # """"" ? #???????????? | | ??????????????????+ # ""Y"" #???????????? | | ??????????????????# # #???????????? | | ??????????????????# # #???????????? | | ??????????????????# # #???????????? | | ??????????????????# g # #???????????? | | ??????????????????# g # """ """ #???????????? | | ??????????????????+ g# """ """ #???????????? | | ??????????????????# + """ """ #???????????? | | ??????????????????# # #??????###### | | ??????????????????# # #?????# | | ????????########### # #????# | | ????? ########+########## | | ????? #??????# #??# | | ?""""""""" """"""""" #??????# #??# | | ????? #??????# #### | | ?""""""""" """"""""" #??????# + | | ???? #????#?###### | | ???? ! g R########????# | | ???? #???## | | ???? %g #???#" | | ?????? ##### "" g ##??#" | | ######+#####% "F """@ ##??#" " | | # "" """ #####" # | | # " ""% # ##" # | | [ # "" ########## #### | | # % % % #?? | | # "" #?? | | + """ % #?? | | # "" #?? | | # " % % #?? | | ### #############/###### | | #?# "" %%# # | | #?# "" # # | | #?# "" # ## | | #########+##?# "" " #% # | | ????????# #??# # #" """ | | #???????# #??# """"" # ## """"" | | #???????# #??# """""" #""" ## """"" | | #????#### #??# """""" #""" ## | | ######T # #??# """""" #""" ## """ | | + #??# # !## """ | | ###### #??# """""" # ## """ | | # # #### """""" # ## | | # + """""" ###+#####+########## | | # # """""" #????? | | # # #????? | +----------------------------------------------------+ Best States ------------- Heat Dissipation 64 Coolant Potential 65 Energy Generation 21 Energy Capacity 325 Matter Stores 300 Matter Capacity 550 Sight Range 20 Terrain Scan Range 16 Terrain Scan Density 85 Jamming Range 12 Armor Coverage 450 Resistance: KI 30 Phase Shifting 15 Evasion (%) 55 Targeting Accuracy 8 Melee Accuracy 8 Recoil Reduction 4 Offensive Hacking 10 Relay Coupler Types 2 Relay Coupler Value 65 Item Schematics ----------------- Arm. Huge Wheel | -7/Factory | Scanalyzed Robot Schematics ------------------ None Fabricated ------------ Nothing Alien Tech Used ----------------- None Achievements -------------- Assassin Infiltrator Tester Challenges ------------ None Game ------ Seed ThrusterUtilityDetector Manual? 0 Play Time 02:52:55 Cumulative 81.8 hours Start 2024.05.22 @ 16:26:20 End 2024.05.22 @ 21:02:40 Sessions 3 Manual Loads 0 Difficulty Rogue Special Mode None Game No. 75 Rogue 70 Adventurer 5 Explorer 0 Win Type - Total 1 Types 1/0/0/0/0/0/0/0/0 Lore% 38 Gallery% 50 Achievement% 37 Wizard Run 0 Options --------- Layout 2 ASCII 0 Keyboard 0 Movement Mouse Keybinds 0 Fullscreen 2 Font 24/Smallcaps Map View 50x44 Zoom Use 0% Tactical HUD 1 Map Filters NONE Filters NONE Steam 1 RUN: 0e87ab16-77ff-4b66-a7e3-8c1eae0bb65a